bitfinex/quotes_ETHUSD_20240910
["timestamp","ask_amount","ask_price","bid_price","bid_amount"]
[1725929813466,4.17232404,2354.7,2354.1,0.45236256]
[1725929813779,4.17232404,2354.7,2354.2,1.34343704]
[1725929814067,4.17232404,2354.7,2354.1,0.45236256]
[1725929814273,4.17232404,2354.7,2354.2,1.34343704]
[1725929814573,4.17232404,2354.7,2354.1,0.45236256]
[1725929814774,4.17232404,2354.7,2354.2,1.34341694]
[1725929814939,4.17232404,2354.7,2354.1,0.45236256]
[1725929815139,4.17232404,2354.7,2354.2,1.34341063]
[1725929815339,4.17232404,2354.7,2354.1,0.45236256]
[1725929815542,4.17232404,2354.7,2354.2,1.34344336]
[1725929815777,4.17232404,2354.7,2354.1,0.45236256]
[1725929816080,4.17232404,2354.7,2354.2,1.34344371]
[1725929816242,4.17232404,2354.7,2354.1,0.45236256]
[1725929816443,4.17232404,2354.7,2354.2,1.343447]
[1725929816644,4.17232404,2354.7,2354.1,0.45236256]
[1725929816850,4.17232404,2354.7,2354.2,1.34343839]
[1725929817042,4.17232404,2354.7,2354.1,0.45236256]
[1725929817243,4.17232404,2354.7,2354.2,1.34343573]
[1725929817444,4.58955644,2354.7,2354.1,0.45236256]
[1725929817765,4.58955644,2354.7,2354.2,1.34342967]
[1725929817986,4.58955644,2354.7,2354.0,3.29191026]
[1725929818282,4.17232404,2354.7,2354.1,3.35857478]
[1725929818453,4.17232404,2354.7,2354.2,1.34342991]
[1725929818665,4.17232404,2354.7,2354.0,3.29191026]
[1725929818842,4.17232404,2354.7,2354.1,3.35859383]
[1725929819041,4.17232404,2354.7,2354.2,1.34343753]
[1725929819241,4.58955644,2354.7,2354.0,3.29191026]
[1725929819437,4.17232404,2354.7,2354.1,3.35861821]
[1725929819643,4.17232404,2354.7,2354.2,1.34344728]
[1725929819876,4.17232404,2354.7,2354.0,3.29191026]
[1725929820068,4.17232404,2354.7,2354.1,3.35860846]
[1725929820264,4.17232404,2354.7,2354.2,1.34344338]
[1725929820471,4.17232404,2354.7,2354.0,3.29191026]
[1725929820656,4.17232404,2354.7,2354.1,3.35868212]
[1725929820855,4.17232404,2354.7,2354.2,1.34347285]
[1725929821053,4.17232404,2354.7,2354.0,3.99804734]
[1725929821292,4.17232404,2354.7,2354.1,3.35866951]
[1725929821449,4.17232404,2354.7,2354.2,1.3434678]
[1725929821650,4.17232404,2354.7,2354.0,3.99804734]
[1725929821846,4.17232404,2354.7,2354.1,3.89240113]
[1725929822143,4.17232404,2354.7,2354.2,3.35873455]
[1725929822341,4.17232404,2354.7,2354.1,1.42607653]
[1725929822571,4.17232404,2354.7,2354.2,3.35879627]
[1725929822774,4.17232404,2354.7,2354.1,1.42607653]
[1725929822991,4.17232404,2354.7,2354.2,3.35879693]
[1725929823284,4.17232404,2354.7,2354.1,0.53366627]
[1725929823508,4.17232404,2354.7,2354.2,1.34354294]
[1725929823667,4.17232404,2354.7,2354.1,0.53366627]
[1725929823858,4.17232404,2354.7,2354.2,1.34354421]
[1725929824186,4.17232404,2354.7,2354.1,0.53366627]
[1725929824387,4.58955644,2354.7,2354.2,1.3435587]
[1725929824594,4.58955644,2354.7,2354.0,3.99804734]
[1725929824757,4.17232404,2354.7,2354.1,1.34356947]
[1725929824957,4.17232404,2354.7,2354.2,1.34356947]
[1725929825158,4.17232404,2354.7,2354.0,3.99804734]
[1725929825411,4.17232404,2354.7,2354.1,3.35891483]
[1725929825589,4.17232404,2354.7,2354.2,1.34356593]
[1725929825767,4.17232404,2354.7,2354.0,3.99804734]
[1725929825969,4.17232404,2354.7,2354.1,3.89261822]
[1725929826170,4.17232404,2354.7,2354.2,1.34358078]
[1725929826408,4.17232404,2354.7,2354.1,0.53366627]
[1725929826570,4.17232404,2354.7,2354.2,1.34360425]
[1725929826906,4.17232404,2354.7,2354.1,1.42607653]
[1725929827057,4.17232404,2354.7,2354.2,1.34360188]
[1725929827395,4.17232404,2354.7,2354.1,1.42607653]
[1725929827590,4.17232404,2354.7,2354.2,3.35907602]
[1725929827817,4.17232404,2354.7,2354.1,0.53366627]
[1725929827960,4.17232404,2354.7,2354.2,1.3436326]
[1725929828162,4.17232404,2354.7,2354.1,0.53366627]
[1725929828495,4.17232404,2354.7,2354.2,1.34363221]
[1725929828695,4.17232404,2354.7,2354.1,0.53366627]
[1725929828901,4.17232404,2354.7,2354.2,1.34367529]
[1725929829197,4.17232404,2354.7,2354.1,0.53366627]
[1725929829413,2.3129,2354.9,2354.3,2.4904]
[1725929829584,4.84320132,2355.2,2354.8,1.87522404]
[1725929829755,4.84320132,2355.6,2354.9,5.93430622]
[1725929829956,2.3129,2355.5,2355.0,3.35891116]
[1725929830171,2.3129,2355.5,2355.1,3.35888986]
[1725929830373,2.3129,2355.5,2355.0,0.08491444]
[1725929830574,2.3129,2355.5,2354.9,3.49445559]
[1725929830778,2.3129,2355.5,2355.0,1.34009902]
[1725929830975,2.3129,2355.5,2354.9,2.4904]
[1725929831171,4.18812404,2355.5,2354.8,0.89241026]
[1725929831379,4.18812404,2355.5,2354.7,2.3744]
[1725929831677,1.87522404,2355.3,2354.7,2.3744]
[1725929831983,2.2861,2355.2,2354.8,0.23744]
[1725929835671,2.2861,2355.2,2354.5,0.89241026]
[1725929835897,1.87522404,2354.9,2354.3,0.89241026]
[1725929836075,1.87522404,2354.9,2354.2,5.15900468]
[1725929836076,1.87522404,2354.9,2354.2,4.71279955]
[1725929836277,2.3129,2354.8,2354.3,1.33801982]
[1725929836615,2.3129,2354.8,2354.2,3.82038929]
[1725929836771,2.3129,2354.8,2354.3,1.80924292]
[1725929836972,2.3129,2354.8,2354.3,0.47127996]
[1725929837413,2.3129,2355.0,2354.3,0.47127996]
[1725929844498,1.87522404,2354.9,2354.2,2.75717136]
[1725929844703,2.3129,2354.8,2354.2,2.75717136]
[1725929846184,4.13242404,2355.1,2354.3,0.08493753]
[1725929847514,4.13242404,2355.1,2354.2,2.75717136]
[1725929847710,4.84320132,2355.2,2354.2,2.75717136]
[1725929847711,1.87522404,2354.9,2354.2,2.75717136]
[1725929848019,2.3129,2354.8,2354.2,2.75717136]
[1725929848481,2.3129,2354.8,2354.3,0.36495816]
[1725929848688,2.3129,2354.8,2354.2,2.304]
[1725929851816,2.3129,2354.8,2354.3,0.0849398]
[1725929852653,2.3129,2354.8,2354.2,2.304]
[1725929855348,2.3129,2354.8,2354.3,3.34593036]
[1725929855502,2.3129,2354.8,2354.1,3.33431026]
[1725929855707,2.3129,2354.8,2354.2,3.88387408]
[1725929855922,2.3129,2354.8,2354.2,0.53790627]
[1725929856687,4.18812404,2354.8,2354.2,0.53790627]
[1725929857868,2.3129,2354.8,2354.2,0.53790627]
[1725929858951,2.3129,2354.8,2354.3,1.33859228]
[1725929859151,2.3129,2354.8,2354.2,0.53790627]
[1725929859374,2.3129,2354.8,2354.3,0.38722165]
[1725929859768,2.3129,2354.8,2354.3,0.47216163]
[1725929860273,2.3129,2354.8,2354.4,2.265]
[1725929860473,6.71842536,2355.2,2354.5,0.08493293]
[1725929860474,2.3129,2355.0,2354.5,0.08493293]
[1725929860879,7.15610132,2355.2,2354.4,5.0326343]
[1725929861053,7.15610132,2355.2,2354.5,4.02243253]
[1725929861394,7.15610132,2355.2,2354.5,0.67584713]
[1725929862171,9.03132536,2355.2,2354.5,0.67584713]
[1725929863693,2.2683,2354.9,2354.5,0.67584713]
[1725929863861,2.2683,2354.9,2354.3,1.27963191]
[1725929864195,2.2683,2354.9,2354.4,3.43180056]
[1725929864351,2.2683,2354.9,2354.3,1.27963191]
[1725929864547,2.2683,2354.9,2354.4,3.34707792]
[1725929864773,2.2683,2354.9,2354.3,0.38722165]
[1725929864974,2.2683,2354.9,2354.4,1.33884147]
[1725929865174,2.2683,2354.9,2354.3,1.27963191]
[1725929865380,6.71842536,2355.2,2354.4,3.90121637]
[1725929865690,6.71842536,2355.2,2354.4,0.55415536]
[1725929866374,6.71842536,2355.2,2354.5,1.33894321]
[1725929866691,6.71842536,2355.2,2354.4,0.55415536]
[1725929867958,6.71842536,2355.2,2354.5,1.33904025]
[1725929868192,6.71842536,2355.2,2354.5,0.31728275]
[1725929868393,6.71842536,2355.2,2354.3,1.27963191]
[1725929868693,6.71842536,2355.2,2354.4,3.34787]
[1725929868853,6.71842536,2355.2,2354.5,1.339148]
[1725929869054,6.71842536,2355.2,2354.3,1.27963191]
[1725929869290,6.71842536,2355.2,2354.4,3.34781573]
[1725929869595,6.71842536,2355.2,2354.5,1.33912629]
[1725929869596,7.3902679,2355.2,2354.5,1.33912629]
[1725929869807,7.3902679,2355.2,2354.4,0.65039693]
[1725929870097,2.54706658,2355.2,2354.5,1.3392606]
[1725929870295,1.87522404,2355.2,2354.3,1.27963191]
[1725929870451,1.87522404,2355.2,2354.4,3.34853693]
[1725929870655,1.87522404,2355.2,2354.5,1.33941477]
[1725929870875,1.87522404,2355.2,2354.3,1.27963191]
[1725929871097,1.87522404,2355.2,2354.4,3.34855108]
[1725929871301,1.87522404,2355.2,2354.5,1.80223873]
[1725929871538,1.87522404,2355.2,2354.5,0.4628183]
[1725929871801,1.87522404,2355.2,2354.4,0.89241026]
[1725929871975,1.87522404,2355.2,2354.5,3.34893903]
[1725929872153,1.87522404,2355.2,2354.4,0.89241026]
[1725929872357,1.87522404,2355.2,2354.5,3.3489384]
[1725929872595,1.87522404,2355.2,2354.4,0.89241026]
[1725929872798,1.87522404,2355.2,2354.5,3.61117796]
[1725929872958,1.87522404,2355.2,2354.5,0.26182473]
[1725929873801,1.87522404,2355.2,2354.6,1.33991856]
[1725929873959,1.87522404,2355.2,2354.5,0.26182473]
[1725929874298,1.87522404,2355.2,2354.6,1.33991549]
[1725929874600,1.87522404,2355.0,2354.4,0.89241026]
[1725929874763,1.87522404,2355.0,2354.5,3.35036427]
[1725929874963,1.87522404,2355.0,2354.6,1.34014571]
[1725929875203,1.87522404,2355.0,2354.4,1.38650767]
[1725929875432,1.87522404,2355.0,2354.5,3.35097768]
[1725929875629,1.87522404,2355.0,2354.4,1.38650767]
[1725929875931,1.87522404,2355.0,2354.5,3.3510216]
[1725929876092,1.87522404,2355.0,2354.4,0.89241026]
[1725929876290,1.87522404,2354.8,2354.3,0.89241026]
[1725929876532,1.87522404,2354.6,2354.1,0.89241026]
[1725929876733,1.87522404,2354.8,2354.2,3.35196032]
[1725929877032,1.87522404,2354.8,2354.3,1.34078369]
[1725929877229,1.87522404,2354.8,2354.1,0.89241026]
[1725929877538,1.87522404,2354.8,2354.2,3.35237598]
[1725929877693,1.87522404,2354.8,2354.1,0.89241026]
[1725929877892,1.87522404,2354.8,2354.2,3.35243335]
[1725929878132,1.87522404,2354.8,2354.3,1.34097334]
[1725929878445,3.0,2355.1,2354.4,1.34095525]
[1725929878610,0.55,2355.0,2354.2,0.97735672]
[1725929878810,0.55,2355.0,2354.3,4.24477306]
[1725929879117,0.355,2354.9,2354.4,3.3523628]
[1725929879326,0.355,2354.9,2354.3,0.89241026]
[1725929879510,2.23022404,2354.9,2354.4,3.3525807]
[1725929879834,2.23022404,2354.9,2354.3,0.89241026]
[1725929880021,1.87522404,2354.9,2354.4,3.35259055]
[1725929880333,1.87522404,2354.9,2354.3,0.89241026]
[1725929880541,1.87522404,2354.9,2354.4,3.35296675]
[1725929880700,2.2645,2354.8,2354.3,0.89241026]
[1725929880896,2.2645,2354.8,2354.4,3.35294885]
[1725929881200,2.2645,2354.8,2354.3,0.89241026]
[1725929881418,2.2645,2354.8,2354.4,3.35343115]
[1725929881621,2.2645,2354.8,2354.3,1.33415334]
[1725929881932,1.87522404,2354.9,2354.2,1.33861539]
[1725929881933,1.87522404,2354.5,2354.2,0.89241026]
[1725929882238,1.87522404,2354.5,2354.1,1.76431539]
[1725929882239,2.2915,2354.4,2354.3,1.34141921]
[1725929882611,2.2915,2354.4,2354.1,0.89241026]
[1725929882840,2.2915,2354.4,2354.2,1.34124003]
[1725929883046,2.2915,2354.4,2354.0,0.89241026]
[1725929883197,2.2915,2354.4,2354.1,4.24552984]
[1725929883397,2.2915,2354.4,2354.2,3.35308049]
[1725929883635,2.2915,2354.4,2354.1,0.89241026]
[1725929883851,2.2915,2354.4,2354.2,3.35264108]
[1725929884136,2.2915,2354.4,2354.1,0.89241026]
[1725929884319,2.2915,2354.4,2354.2,3.35265681]
[1725929884523,2.2915,2354.4,2354.1,0.29187903]
[1725929884725,2.2915,2354.4,2354.2,1.34092087]
[1725929884932,2.2915,2354.4,2354.1,0.29187903]
[1725929885130,2.2915,2354.4,2354.2,1.3409299]
[1725929885328,2.2915,2354.4,2354.0,1.58017488]
[1725929885622,2.2915,2354.4,2354.1,3.35232183]
[1725929885830,2.2915,2354.4,2354.0,1.58017488]
[1725929886025,2.2915,2354.4,2354.1,3.35194223]
[1725929886226,2.2915,2354.4,2354.0,1.58017488]
[1725929886432,2.2915,2354.4,2354.1,3.64374628]
[1725929886633,2.2915,2354.4,2354.1,0.29187903]
[1725929887305,2.2915,2354.4,2354.0,0.68776462]
[1725929887505,2.2915,2354.4,2354.1,1.34062068]
[1725929887732,2.2915,2354.4,2354.0,0.68776462]
[1725929887905,2.2915,2354.4,2354.1,1.3404934]
[1725929888106,2.2915,2354.4,2354.0,0.68776462]
[1725929888344,2.2915,2354.4,2354.1,1.34049325]
[1725929888645,2.2915,2354.4,2354.0,0.68776462]
[1725929888850,2.2915,2354.4,2354.1,1.34035257]
[1725929889020,2.2915,2354.4,2354.0,0.68776462]
[1725929889202,2.2915,2354.4,2354.1,1.34035269]
[1725929889404,2.2915,2354.4,2354.0,0.68776462]
[1725929889641,2.2915,2354.4,2354.1,1.34022127]
[1725929889846,2.2915,2354.4,2354.1,0.30053488]
[1725929890307,2.2915,2354.4,2353.9,0.89241026]
[1725929890506,2.2915,2354.4,2354.0,3.35045011]
[1725929890702,2.2915,2354.4,2354.1,1.34018004]
[1725929891041,2.2915,2354.4,2353.8,3.32851026]
[1725929891242,2.2915,2354.4,2353.9,3.3503598]
[1725929891448,2.2915,2354.4,2354.0,2.00803093]
[1725929891651,2.2915,2354.4,2354.0,0.66788701]
[1725929891818,2.2915,2354.4,2353.8,3.32851026]
[1725929892024,2.2915,2354.4,2353.9,3.34997727]
[1725929892344,2.2915,2354.4,2354.0,1.33999091]
[1725929892530,2.2915,2354.4,2353.8,3.32851026]
[1725929892842,2.2915,2354.4,2353.9,3.43457007]
[1725929893038,2.2915,2354.4,2354.0,2.01614932]
[1725929893229,2.2915,2354.4,2354.0,0.67630803]
[1725929893746,2.2915,2354.4,2354.0,0.08495201]
[1725929894940,2.2915,2354.4,2353.8,3.32851026]
[1725929895129,2.2915,2354.4,2353.9,3.34909705]
[1725929895330,2.2915,2354.4,2354.0,1.33963882]
[1725929895532,2.2915,2354.4,2353.8,3.32851026]
[1725929895737,2.2915,2354.4,2353.9,4.00309097]
[1725929895919,2.2915,2354.4,2354.0,1.3395424]
[1725929896116,2.2915,2354.4,2353.9,0.65423497]
[1725929897717,2.2915,2354.4,2354.0,1.33937175]
[1725929897935,2.2915,2354.4,2353.9,0.65423497]
[1725929898148,2.2915,2354.4,2354.0,0.39827452]
[1725929898661,7.15610132,2354.8,2354.1,3.76329534]
[1725929898819,7.15610132,2354.8,2354.1,2.3391]
[1725929899018,2.3129,2354.6,2354.1,2.3391]
[1725929899219,2.3129,2354.6,2354.2,0.36297848]
[1725929901320,2.3129,2354.6,2354.0,1.29068478]
[1725929901636,2.3129,2354.6,2354.1,3.34792725]
[1725929901849,2.3129,2354.6,2354.0,1.29068478]
[1725929902033,2.3129,2354.6,2354.1,3.34806031]
[1725929902230,2.3129,2354.6,2354.0,1.29068478]
[1725929902467,2.3129,2354.6,2354.1,1.33918633]
[1725929902759,2.3129,2354.6,2354.0,0.39827452]
[1725929903262,2.3129,2354.5,2353.9,0.89241026]
[1725929903426,2.3129,2354.5,2354.0,3.34800341]
[1725929903622,2.3129,2354.4,2353.8,0.89241026]
[1725929903960,2.3129,2354.4,2353.9,3.3481015]
[1725929904176,2.3129,2354.4,2353.9,0.83919272]
[1725929904355,1.87522404,2354.2,2353.7,1.31811026]
[1725929904554,1.87522404,2354.2,2353.6,1.33861539]
[1725929904555,2.3129,2354.1,2353.6,2.23102565]
[1725929904843,2.3129,2354.1,2353.7,1.33895635]
[1725929905046,2.3129,2354.1,2353.5,0.89241026]
[1725929905363,2.3129,2354.1,2353.6,3.57056429]
[1725929905579,2.3129,2354.1,2353.6,0.22310256]
[1725929906068,2.3129,2353.7,2353.5,0.89241026]
[1725929906248,2.3129,2353.7,2353.2,0.89241026]
[1725929906419,1.87522404,2353.6,2353.3,1.33882783]
[1725929906624,2.3129,2353.5,2353.0,0.89241026]
[1725929906861,2.3129,2353.5,2353.1,3.34586482]
[1725929907167,2.3129,2353.5,2353.0,0.89241026]
[1725929907369,2.3129,2353.5,2353.1,1.3383539]
[1725929907572,2.3129,2353.5,2352.9,0.89241026]
[1725929907776,1.87522404,2353.2,2352.8,0.89241026]
[1725929907926,1.87522404,2353.2,2352.6,0.89241026]
[1725929908130,1.87522404,2353.2,2352.7,3.34489065]
[1725929908467,1.87522404,2353.2,2352.6,0.89241026]
[1725929908468,2.3129,2353.3,2352.8,1.33800714]
[1725929908669,2.3129,2353.3,2352.7,0.89241026]
[1725929908877,2.2946,2353.8,2353.0,1.87522404]
[1725929909157,2.2946,2353.8,2353.2,2.4108]
[1725929909367,2.2946,2353.8,2353.3,0.0849712]
[1725929910464,2.2946,2353.8,2353.2,2.4108]
[1725929913381,2.2946,2353.8,2353.3,0.08496807]
[1725929913556,7.09500132,2354.0,2353.3,0.08496807]
[1725929913751,2.2518,2354.0,2353.3,0.37740512]
[1725929923387,2.2518,2354.0,2353.4,2.3776]
[1725929923589,2.2518,2354.0,2353.5,0.08496772]
[1725929926423,4.06167938,2354.2,2353.5,0.08496772]
[1725929926700,4.06167938,2354.2,2353.6,2.2982]
[1725929926701,2.3129,2354.2,2353.6,2.2982]
[1725929927077,2.3129,2354.2,2353.6,2.38316778]
[1725929929203,2.3129,2354.2,2353.6,2.2982]
[1725929930079,4.18731739,2354.2,2353.6,2.2982]
[1725929930273,4.18731739,2354.2,2353.3,0.89241026]
[1725929930274,2.3129,2354.2,2353.3,2.3203]
[1725929930494,1.87441739,2354.0,2353.4,1.68051683]
[1725929930797,2.3129,2354.2,2353.5,0.0849678]
[1725929930998,2.3129,2354.2,2353.5,2.4052678]
[1725929931394,4.18731739,2354.2,2353.5,2.4052678]
[1725929931921,4.18731739,2354.2,2353.5,2.3203]
[1725929932119,4.18731739,2354.2,2353.6,0.08496773]
[1725929932351,4.18731739,2354.2,2353.5,2.56082677]
[1725929937821,4.18731739,2354.2,2353.5,2.3203]
[1725929941781,1.87441739,2353.8,2353.5,2.3203]
[1725929941947,1.87441739,2353.8,2353.3,2.4919]
[1725929943784,1.87441739,2353.6,2353.1,2.3363]
[1725929946285,2.3129,2353.9,2353.1,2.3363]
[1725929946442,2.3129,2353.9,2353.2,1.36092435]
[1725929946443,0.71561013,2353.8,2353.2,1.36092435]
[1725929946638,0.71561013,2353.8,2353.1,3.22871026]
[1725929946838,0.71561013,2353.8,2353.2,3.40307905]
[1725929947087,0.71561013,2353.8,2353.1,2.3363]
[1725929947383,0.30285101,2353.7,2353.2,3.40306935]
[1725929947675,2.1772684,2353.7,2353.1,3.22871026]
[1725929947888,2.1772684,2353.7,2353.2,3.40408421]
[1725929948179,2.1772684,2353.7,2353.1,3.22871026]
[1725929948377,2.1772684,2353.7,2353.2,3.40405605]
[1725929948582,0.28928785,2353.6,2353.1,3.22871026]
[1725929948740,0.28928785,2353.6,2353.1,2.3363]
[1725929948741,2.3129,2353.5,2353.1,2.3363]
[1725929948943,2.3129,2353.5,2353.2,1.36211333]
[1725929949178,2.3129,2353.5,2353.0,0.89241026]
[1725929949479,2.3129,2353.5,2353.1,3.40511268]
[1725929949792,2.3129,2353.5,2353.2,1.36204507]
[1725929949949,2.73163174,2353.5,2353.0,0.89241026]
[1725929950289,2.73163174,2353.5,2353.1,3.40620538]
[1725929950514,2.73163174,2353.5,2353.2,1.36256096]
[1725929950728,2.73163174,2353.5,2353.0,0.89241026]
[1725929950868,2.73163174,2353.5,2353.1,3.406411]
[1725929951210,2.73163174,2353.5,2353.2,1.3625644]
[1725929951390,0.46060491,2353.4,2353.0,0.89241026]
[1725929951597,2.3129,2353.5,2353.1,3.4062403]
[1725929951775,2.3129,2353.5,2353.0,0.89241026]
[1725929951977,2.3129,2353.5,2353.1,3.40645753]
[1725929952182,2.3129,2353.5,2353.0,0.89241026]
[1725929952413,2.3129,2353.5,2353.1,3.40624131]
[1725929952603,2.3129,2353.5,2353.0,0.89241026]
[1725929952903,2.3129,2353.5,2353.1,3.40617395]
[1725929953112,2.3129,2353.5,2353.0,0.89241026]
[1725929953276,2.3129,2353.5,2353.1,3.40599186]
[1725929953478,2.3129,2353.5,2353.0,0.89241026]
[1725929953687,2.3129,2353.5,2353.1,3.40598605]
[1725929953999,2.3129,2353.5,2353.0,0.89241026]
[1725929954313,2.3129,2353.5,2353.1,3.40581492]
[1725929954470,2.73163174,2353.5,2353.2,1.36232111]
[1725929954790,2.73163174,2353.5,2353.0,0.89241026]
[1725929954994,2.73163174,2353.5,2353.1,3.40626122]
[1725929955210,2.73163174,2353.5,2353.2,1.36250449]
[1725929955367,2.3129,2353.5,2353.0,0.89241026]
[1725929955567,2.3129,2353.5,2353.1,1.36241257]
[1725929955799,1.87441739,2353.4,2353.0,0.89241026]
[1725929956001,2.3129,2353.3,2353.1,3.40607413]
[1725929956197,2.73163174,2353.3,2352.9,0.89241026]
[1725929956469,2.73163174,2353.3,2353.0,3.4058276]
[1725929956711,2.73163174,2353.3,2352.8,0.89241026]
[1725929956895,1.87441739,2353.2,2352.9,3.40578705]
[1725929957100,1.87441739,2353.2,2353.0,1.36231482]
[1725929957269,2.3350223,2353.2,2352.8,0.89241026]
[1725929957620,2.3350223,2353.2,2352.9,3.40535687]
[1725929957775,2.3350223,2353.2,2352.8,0.89241026]
[1725929958102,2.3350223,2353.2,2352.9,3.40527147]
[1725929958287,2.3350223,2353.2,2352.8,0.89241026]
[1725929958489,2.3350223,2353.2,2352.9,3.40488147]
[1725929958698,2.3350223,2353.2,2352.8,0.89241026]
[1725929958872,2.3350223,2353.2,2352.9,3.40479698]
[1725929959071,2.3350223,2353.2,2352.8,0.89241026]
[1725929959269,1.87441739,2353.2,2352.9,3.40445303]
[1725929959593,1.87441739,2353.2,2352.8,0.89241026]
[1725929959773,1.87441739,2353.2,2352.9,3.40435208]
[1725929960101,1.87441739,2353.2,2352.8,0.89241026]
[1725929960311,1.87441739,2353.2,2352.9,3.40404073]
[1725929960512,1.87441739,2353.2,2352.8,0.89241026]
[1725929960805,1.87441739,2353.2,2352.9,1.36157799]
[1725929961005,1.87441739,2353.2,2352.7,0.89241026]
[1725929961006,2.29314913,2353.2,2352.7,0.89241026]
[1725929961180,2.29314913,2353.2,2352.8,1.36143574]
[1725929961384,2.29314913,2353.2,2352.6,0.89241026]
[1725929961601,2.29314913,2353.2,2352.7,3.4271826]
[1725929961905,2.29314913,2353.2,2352.8,1.37087304]
[1725929962108,2.29314913,2353.2,2352.6,0.89241026]
[1725929962421,1.87441739,2353.2,2352.7,1.3706717]
[1725929962575,1.87441739,2353.2,2352.8,1.3706717]
[1725929962912,1.87441739,2353.2,2352.6,1.54088488]
[1725929963101,1.87441739,2353.2,2352.7,3.42658648]
[1725929963306,1.87441739,2353.2,2352.8,1.37048048]
[1725929963478,1.87441739,2353.2,2352.6,1.54088488]
[1725929963777,1.87441739,2353.2,2352.7,3.42611042]
[1725929964114,1.87441739,2353.2,2352.6,1.54088488]
[1725929964311,1.87441739,2353.2,2352.7,3.4257627]
[1725929964513,1.87441739,2353.2,2352.6,1.54088488]
[1725929964704,1.87441739,2353.2,2352.7,3.42565143]
[1725929964889,1.87441739,2353.2,2352.6,1.54088488]
[1725929965207,1.87441739,2353.2,2352.7,3.42565206]
[1725929965405,1.87441739,2353.2,2352.6,1.54088488]
[1725929965621,1.87441739,2353.2,2352.7,3.42526215]
[1725929965788,1.87441739,2353.2,2352.6,1.54088488]
[1725929965979,1.87441739,2353.2,2352.7,1.37010565]
[1725929966181,1.87441739,2353.2,2352.6,1.54088488]
[1725929966376,1.87441739,2353.2,2352.7,3.42500485]
[1725929966576,1.87441739,2353.2,2352.6,1.54088488]
[1725929966778,1.87441739,2353.2,2352.7,1.36995871]
[1725929966977,1.87441739,2353.2,2352.6,1.54088488]
[1725929967201,1.87441739,2353.2,2352.7,3.42489223]
[1725929967416,1.87441739,2353.2,2352.6,1.54088488]
[1725929967579,1.87441739,2353.2,2352.7,1.36983112]
[1725929967775,1.87441739,2353.2,2352.6,0.64847462]
[1725929968006,1.87441739,2353.2,2352.7,1.36983325]
[1725929968318,1.87441739,2353.2,2352.6,0.64847462]
[1725929968481,1.87441739,2353.2,2352.7,1.36976055]
[1725929968793,2.3129,2353.1,2352.6,0.64847462]
[1725929969114,2.3129,2353.1,2352.7,1.36971718]
[1725929969319,2.3129,2353.1,2352.6,0.64847462]
[1725929969477,2.3129,2353.1,2352.7,1.36965505]
[1725929969678,2.3129,2353.1,2352.6,0.64847462]
[1725929969879,2.3129,2353.1,2352.7,1.36962828]
[1725929970078,2.3129,2353.1,2352.6,0.64847462]
[1725929970278,2.3129,2353.1,2352.7,1.36957503]
[1725929970583,2.3129,2353.1,2352.6,0.64847462]
[1725929970785,2.3129,2353.1,2352.7,1.36953802]
[1725929971106,2.3129,2353.1,2352.6,0.64847462]
[1725929971307,2.3129,2353.1,2352.7,1.36949394]
[1725929971506,2.3129,2353.1,2352.6,0.64847462]
[1725929971734,2.3129,2353.1,2352.7,1.36946284]
[1725929971884,2.3129,2353.1,2352.6,0.64847462]
[1725929972083,2.3129,2353.1,2352.7,1.36946284]
[1725929972283,2.3129,2353.1,2352.6,0.64847462]
[1725929972622,2.3129,2353.1,2352.7,1.36942798]
[1725929972782,2.3129,2353.1,2352.6,0.64847462]
[1725929972997,2.3129,2353.1,2352.7,1.36940638]
[1725929973201,2.3129,2353.1,2352.6,0.64847462]
[1725929973439,2.3129,2353.1,2352.7,1.36938181]
[1725929973613,2.3129,2353.1,2352.6,0.64847462]
[1725929973946,1.87441739,2353.2,2352.7,1.36943593]
[1725929974125,2.3129,2353.3,2352.7,0.53792208]
[1725929974300,2.3129,2353.3,2352.7,2.3012]
[1725929975002,4.18731739,2353.3,2352.7,2.3012]
[1725929979546,4.18731739,2353.3,2352.8,1.36999825]
[1725929979711,4.18731739,2353.3,2352.7,2.3012]
[1725929980049,4.18731739,2353.3,2352.8,1.36999785]
[1725929980342,4.18731739,2353.3,2352.7,2.3012]
[1725929980546,4.18731739,2353.3,2352.8,1.37001966]
[1725929980711,4.18731739,2353.3,2352.7,2.75442257]
[1725929980906,4.18731739,2353.3,2352.8,1.37013943]
[1725929981112,4.18731739,2353.3,2352.7,2.75442257]
[1725929981447,4.18731739,2353.3,2352.8,1.37016369]
[1725929981767,4.18731739,2353.3,2352.7,2.75442257]
[1725929981922,4.18731739,2353.3,2352.8,3.42571679]
[1725929982119,4.18731739,2353.3,2352.7,3.64683283]
[1725929982443,4.18731739,2353.3,2352.8,3.42574438]
[1725929982655,4.18731739,2353.3,2352.9,1.37029775]
[1725929982808,4.18731739,2353.3,2352.7,3.64683283]
[1725929983008,4.18731739,2353.3,2352.8,3.42170683]
[1725929983246,4.60604913,2353.3,2352.9,1.36868273]
[1725929983452,4.60604913,2353.3,2352.7,3.19361026]
[1725929983619,4.60604913,2353.3,2352.8,3.42246365]
[1725929983827,4.60604913,2353.3,2352.9,3.42244033]
[1725929984027,4.60604913,2353.3,2352.8,0.89241026]
[1725929984333,4.60604913,2353.3,2352.9,3.42253772]
[1725929984644,4.60604913,2353.3,2352.8,0.89241026]
[1725929984819,4.60604913,2353.3,2352.9,3.42324025]
[1725929985028,4.60604913,2353.3,2352.8,0.89241026]
[1725929985225,4.60604913,2353.3,2352.9,3.42336448]
[1725929985427,4.60604913,2353.3,2352.8,0.89241026]
[1725929985638,4.60604913,2353.3,2352.9,3.4241789]
[1725929985833,4.60604913,2353.3,2353.0,1.36967156]
[1725929986068,4.60604913,2353.3,2352.8,0.89241026]
[1725929986226,4.60604913,2353.3,2352.9,3.42428128]
[1725929986421,4.60604913,2353.3,2353.0,1.36971251]
[1725929986623,4.60604913,2353.3,2352.8,0.89241026]
[1725929986829,4.60604913,2353.3,2352.9,3.42428076]
[1725929987044,4.60604913,2353.3,2353.0,1.37014605]
[1725929987349,4.60604913,2353.3,2352.8,0.89241026]
[1725929987547,4.60604913,2353.3,2352.9,3.42536393]
[1725929987751,4.60604913,2353.3,2353.0,1.37014557]
[1725929987934,4.60604913,2353.3,2352.8,0.89241026]
[1725929988176,4.18731739,2353.3,2352.9,3.42536388]
[1725929988371,4.18731739,2353.3,2353.0,3.42566769]
[1725929988545,4.18731739,2353.3,2352.9,0.89241026]
[1725929988752,4.18731739,2353.3,2353.0,1.37034306]
[1725929988950,4.18731739,2353.3,2352.8,0.89241026]
[1725929989264,4.18731739,2353.3,2352.9,4.31830339]
[1725929989460,4.18731739,2353.3,2353.0,3.42589313]
[1725929989661,4.18731739,2353.3,2352.9,0.89241026]
[1725929989858,4.18731739,2353.3,2353.0,3.42613133]